bitfinex-derivatives/quotes_ETHF0:USTF0_20230105
["timestamp","ask_amount","ask_price","bid_price","bid_amount"]
[1672960700138,2.38981376,1251.6,1251.5,12.28106502]
[1672960700878,5.37428951,1251.6,1251.5,12.28106502]
[1672960701610,5.37638947,1251.6,1251.5,12.28106502]
[1672960702027,5.37638947,1251.6,1251.5,9.78106502]
[1672960702352,5.37638947,1251.6,1251.5,1.79506502]
[1672960702661,2.98447575,1251.6,1251.5,1.79506502]
[1672960703711,8.69227575,1251.6,1251.5,1.79506502]
[1672960704132,5.7078,1251.6,1251.4,4.18476842]
[1672960704345,7.88218168,1251.5,1251.4,4.18476842]
[1672960705607,7.88218168,1251.5,1251.4,12.17076842]
[1672960705816,7.88218168,1251.5,1251.4,4.18476842]
[1672960706981,5.38218168,1251.5,1251.4,12.17076842]
[1672960707287,5.38218168,1251.5,1251.4,4.18476842]
[1672960707497,2.39208075,1251.5,1251.4,3.80600833]
[1672960708962,5.38218168,1251.5,1251.4,4.1859929]
[1672960709597,5.38218168,1251.5,1251.4,2.3897034]
[1672960710650,2.39208075,1251.5,1251.4,3.80602824]
[1672960718432,2.39208075,1251.5,1251.4,6.79395309]
[1672960722843,2.39208075,1251.5,1251.4,3.80602824]
[1672960723054,2.39208075,1251.5,1251.4,6.79395309]
[1672960723254,2.39208075,1251.5,1251.4,3.80602824]
[1672960724108,2.39208075,1251.5,1251.4,6.79395309]
[1672960727363,2.39208075,1251.5,1251.4,3.80602824]
[1672960727575,2.39208075,1251.5,1251.4,6.79395309]
[1672960727995,2.39208075,1251.5,1251.4,3.80602824]
[1672960728727,2.39208075,1251.5,1251.4,6.79395309]
[1672960729153,2.39208075,1251.5,1251.4,3.80602824]
[1672960729354,5.38218168,1251.5,1251.4,3.80602824]
[1672960729559,2.99010093,1251.5,1251.4,2.3897034]
[1672960729877,3.2078,1251.5,1251.4,1.79693427]
[1672960730299,3.2078,1251.5,1251.3,4.29693427]
[1672960730617,5.49107656,1251.4,1251.3,4.29693427]
[1672960731244,5.49107656,1251.4,1251.3,1.79693427]
[1672960731879,5.49107656,1251.4,1251.3,4.29693427]
[1672960735034,5.49107656,1251.4,1251.3,1.79693427]
[1672960735557,7.8820893,1251.4,1251.3,4.29693427]
[1672960736503,8.09881274,1251.4,1251.3,4.29693427]
[1672960737239,4.89101274,1251.4,1251.3,4.29693427]
[1672960737445,8.09881274,1251.4,1251.3,4.29693427]
[1672960739552,8.09881274,1251.4,1251.3,1.79693427]
[1672960740073,8.09881274,1251.4,1251.3,4.29693427]
[1672960741025,5.59881274,1251.4,1251.3,4.29693427]
[1672960741438,5.59881274,1251.4,1251.3,1.79693427]
[1672960741756,5.59881274,1251.4,1251.3,4.29693427]
[1672960742176,8.09881274,1251.4,1251.3,4.29181552]
[1672960742595,5.59881274,1251.4,1251.3,4.29181552]
[1672960743123,2.39101274,1251.5,1251.3,10.1120305]
[1672960743329,2.39101274,1251.6,1251.4,3.80939146]
[1672960743649,2.39101274,1251.6,1251.5,2.5]
[1672960743853,2.39101274,1251.6,1251.5,4.89308581]
[1672960744062,2.39101274,1251.6,1251.5,2.5]
[1672960744479,2.39101274,1251.6,1251.5,4.89308581]
[1672960744689,2.39101274,1251.6,1251.5,2.5]
[1672960745539,5.3820893,1251.6,1251.5,2.5]
[1672960745743,4.89101274,1251.6,1251.5,2.5]
[1672960747433,2.39101274,1251.6,1251.5,2.5]
[1672960748379,5.3820893,1251.6,1251.5,2.5]
[1672960748584,2.39101274,1251.6,1251.5,2.5]
[1672960750162,2.39101274,1251.6,1251.5,8.10088581]
[1672960750374,2.39101274,1251.7,1251.5,8.10088581]
[1672960750807,5.3820893,1251.7,1251.5,5.7078]
[1672960751117,2.39101274,1251.6,1251.5,2.5]
[1672960751527,2.39101274,1251.7,1251.5,4.89308581]
[1672960751747,5.3820893,1251.7,1251.5,2.5]
[1672960754170,2.39101274,1251.7,1251.5,2.5]
[1672960754586,5.3820893,1251.7,1251.5,2.5]
[1672960754906,2.39101274,1251.6,1251.5,2.5]
[1672960755117,4.89101274,1251.6,1251.5,2.5]
[1672960755531,4.89101274,1251.6,1251.4,13.10088581]
[1672960755744,4.89101274,1251.6,1251.4,2.5]
[1672960755745,2.39101274,1251.5,1251.4,2.5]
[1672960766890,5.59881274,1251.5,1251.4,2.5]
[1672960767198,5.59881274,1251.5,1251.3,10.486]
[1672960768245,8.5898893,1251.5,1251.3,10.486]
[1672960768560,5.59881274,1251.5,1251.3,10.486]
[1672960769716,2.39101274,1251.5,1251.3,10.486]
[1672960769931,5.59881274,1251.5,1251.3,10.486]
[1672960770349,8.5898893,1251.5,1251.3,10.486]
[1672960770970,8.5898893,1251.5,1251.2,5.38101066]
[1672960771186,2.39101274,1251.4,1251.2,2.39308581]
[1672960771506,2.5,1251.3,1251.2,2.5]
[1672960772769,4.89101274,1251.3,1251.2,2.5]
[1672960773924,4.89101274,1251.3,1251.1,7.39308581]
[1672960774131,4.89101274,1251.3,1251.1,2.39308581]
[1672960774345,3.2078,1251.2,1251.1,2.5]
[1672960779609,3.2078,1251.2,1251.0,8.10088581]
[1672960779813,3.2078,1251.2,1251.1,3.69549248]
[1672960780863,4.89101274,1251.3,1251.1,3.69549248]
[1672960781075,3.2078,1251.2,1251.1,3.69549248]
[1672960785073,3.2078,1251.2,1251.1,1.19549248]
[1672960785599,3.2078,1251.2,1251.1,3.69549248]
[1672960786646,4.89101274,1251.3,1251.1,3.69549248]
[1672960786858,3.2078,1251.2,1251.1,3.69549248]
[1672960787383,4.89101274,1251.3,1251.1,3.69549248]
[1672960787593,3.2078,1251.2,1251.1,3.69549248]
[1672960788119,3.2078,1251.2,1251.1,1.19549248]
[1672960788857,2.5,1251.3,1251.0,11.08881066]
[1672960789065,2.5,1251.3,1251.2,1.1947817]
[1672960789800,6.09881274,1251.4,1251.2,1.1947817]
[1672960790003,3.7078,1251.4,1251.2,1.1947817]
[1672960790215,3.7078,1251.4,1251.3,1.1947817]
[1672960790427,6.09881274,1251.4,1251.3,1.1947817]
[1672960790950,6.09881274,1251.4,1251.2,1.1947817]
[1672960791579,6.09881274,1251.4,1251.3,1.1947817]
[1672960800096,9.0898893,1251.4,1251.3,1.1947817]
[1672960800415,8.5898893,1251.4,1251.3,1.1947817]
[1672960801150,6.19887656,1251.4,1251.3,1.1947817]
[1672960804612,3.2078,1251.4,1251.2,1.1947817]
[1672960804824,6.78356038,1251.4,1251.1,1.1947817]
[1672960805035,6.1999935,1251.2,1251.1,1.1947817]
[1672960806296,6.1999935,1251.2,1251.1,2.98882895]
[1672960806715,6.1999935,1251.2,1251.1,1.1947817]
[1672960808295,6.1999935,1251.2,1251.1,2.98882895]
[1672960809345,6.1999935,1251.2,1251.1,1.1947817]
[1672960809761,6.1999935,1251.2,1251.1,2.98882895]
[1672960810078,6.1999935,1251.2,1251.1,1.1947817]
[1672960811546,3.2078,1251.2,1251.0,2.98882895]
[1672960811762,7.88523602,1251.1,1251.0,2.98882895]
[1672960811974,7.88523602,1251.1,1251.0,2.99113744]
[1672960812287,7.88542311,1251.1,1251.0,2.99113744]
[1672960812814,7.88542311,1251.1,1251.0,1.19709019]
[1672960813023,4.89362532,1251.1,1251.0,2.99113744]
[1672960813228,7.88542311,1251.1,1250.9,2.99113744]
[1672960813548,11.09240131,1251.0,1250.9,1.19709019]
[1672960813761,13.48521487,1251.0,1250.9,1.19709019]
[1672960814068,11.09240131,1251.0,1250.9,1.19709019]
[1672960814284,11.09240131,1251.0,1250.9,1.19436949]
[1672960814492,10.49321221,1251.0,1250.9,2.98841674]
[1672960814700,10.49321221,1251.0,1250.9,1.19436949]
[1672960816809,10.49321221,1251.0,1250.8,4.29404725]
[1672960817014,2.5,1250.9,1250.8,4.29404725]
[1672960817224,2.5,1250.9,1250.8,1.79404725]
[1672960818173,2.5,1250.9,1250.8,4.29404725]
[1672960819230,2.5,1250.9,1250.7,8.57628341]
[1672960820699,3.2078,1250.8,1250.7,6.1831976]
[1672960821541,3.2078,1250.8,1250.7,8.57628341]
[1672960822380,3.2078,1250.8,1250.7,6.78223616]
[1672960824796,8.10060352,1251.0,1250.8,2.5]
[1672960825004,8.10060352,1251.0,1250.9,2.5]
[1672960826163,4.89280352,1251.0,1250.9,2.5]
[1672960826379,8.10060352,1251.0,1250.9,2.5]
[1672960826998,4.89280352,1251.0,1250.9,2.5]
[1672960827319,8.10060352,1251.0,1250.9,2.5]
[1672960827634,8.10060352,1251.0,1250.8,4.29163501]
[1672960827841,8.10060352,1251.0,1250.8,2.5]
[1672960828046,8.10060352,1251.0,1250.8,4.29163501]
[1672960828362,8.10060352,1251.0,1250.8,2.5]
[1672960829104,3.2078,1250.9,1250.8,2.5]
[1672960829314,5.7078,1250.9,1250.8,2.5]
[1672960830990,2.5,1250.9,1250.8,2.5]
[1672960833094,2.5,1250.9,1250.8,4.29163501]
[1672960833410,8.10060352,1251.0,1250.8,4.29163501]
[1672960835302,5.60060352,1251.0,1250.8,4.29163501]
[1672960836450,2.39280352,1251.0,1250.8,4.29163501]
[1672960836657,5.60060352,1251.0,1250.8,4.29163501]
[1672960837610,5.60060352,1251.0,1250.8,6.68472082]
[1672960838236,5.60060352,1251.0,1250.9,1.79163501]
[1672960840973,2.39280352,1251.0,1250.9,1.79163501]
[1672960841189,5.60060352,1251.0,1250.9,1.79163501]
[1672960841931,2.39280352,1251.0,1250.9,1.79163501]
[1672960842247,5.60060352,1251.0,1250.9,1.79163501]
[1672960842450,7.99321221,1251.0,1250.9,1.79163501]
[1672960842969,2.39280352,1251.0,1250.9,4.18805096]
[1672960843184,2.39280352,1251.0,1250.9,4.18805536]
[1672960843395,2.39280352,1251.0,1250.9,1.79496955]
[1672960843604,2.39280352,1251.0,1250.9,4.18805536]
[1672960844765,4.78541221,1251.0,1250.9,3.80994108]
[1672960845818,2.39280352,1251.0,1250.9,3.80994108]
[1672960846759,4.78541221,1251.0,1250.9,3.80994108]
[1672960848548,4.78541221,1251.0,1250.9,6.79786593]
[1672960848864,4.78541221,1251.0,1250.9,3.80994108]
[1672960850019,4.78541221,1251.0,1250.9,6.79786593]
[1672960850231,2.39280352,1251.0,1250.9,6.79786593]
[1672960850436,4.78541221,1251.0,1250.9,6.79786593]
[1672960850649,4.78541221,1251.0,1250.9,4.40478012]
[1672960851603,4.78541221,1251.0,1250.9,6.80055984]
[1672960852124,4.78541221,1251.0,1250.9,4.40478012]
[1672960852445,2.39280352,1251.0,1250.9,4.40478012]
[1672960852752,2.39280352,1251.0,1250.9,3.81247704]
[1672960852753,4.78541221,1251.0,1250.9,3.81247704]
[1672960856860,4.78541221,1251.0,1250.9,6.80040189]
[1672960857062,2.39280352,1251.0,1250.9,4.40478012]
[1672960861694,4.78541221,1251.0,1250.9,3.8125632]
[1672960862110,7.99321221,1251.0,1250.9,3.8125632]
[1672960862421,10.98501,1251.0,1250.9,4.19260092]
[1672960863264,8.59240131,1251.0,1250.9,4.19260092]
[1672960863472,10.98704576,1251.0,1250.9,4.19260092]
[1672960863688,10.98704908,1251.0,1250.9,4.19260092]
[1672960863898,8.59240131,1251.0,1250.9,4.19260092]
[1672960864421,5.60060352,1251.0,1250.8,4.19260092]
[1672960864634,2.99303707,1250.9,1250.8,1.79689299]
[1672960864844,5.49303707,1250.9,1250.8,1.79689299]
[1672960867253,11.09412224,1250.9,1250.8,1.79689299]
[1672960868521,8.70083707,1250.9,1250.8,1.79689299]
[1672960869249,11.09373754,1250.9,1250.8,1.79689299]
[1672960870096,8.70083707,1250.9,1250.8,1.79689299]
[1672960871360,11.09335186,1250.9,1250.8,1.79689299]
[1672960871562,8.70083707,1250.9,1250.7,6.08175127]
[1672960871881,4.89244751,1250.8,1250.7,3.68604334]
[1672960875348,8.10024751,1250.8,1250.7,3.68604334]
[1672960877340,8.10024751,1250.8,1250.7,1.88915035]
[1672960878707,11.09328458,1250.8,1250.7,1.88915035]
[1672960879027,8.70083707,1250.8,1250.7,1.88915035]
[1672960879234,11.09044873,1250.8,1250.7,1.88915035]
[1672960880812,8.09741166,1250.8,1250.7,1.88915035]
[1672960882603,1.14407088,1250.7,1250.3,1.79689299]
[1672960882804,3.2078,1250.4,1250.3,2.5]
[1672960883125,5.7078,1250.4,1250.3,2.5]
[1672960883756,3.2078,1250.4,1250.3,2.5]
[1672960884378,3.2078,1250.4,1250.3,4.29689299]
[1672960885010,2.5,1250.5,1250.3,4.29689299]
[1672960885326,5.7078,1250.5,1250.3,4.29689299]
[1672960885543,5.7078,1250.5,1250.3,2.5]
[1672960887322,2.5,1250.5,1250.3,2.5]
[1672960887746,5.7078,1250.5,1250.3,2.5]
[1672960888593,2.5,1250.5,1250.3,2.5]
[1672960888903,5.7078,1250.5,1250.3,2.5]
[1672960892270,5.7078,1250.5,1250.2,4.29689299]
[1672960894268,5.7078,1250.5,1250.3,2.5]
[1672960895737,3.2078,1250.4,1250.3,2.5]
[1672960896259,2.5,1250.3,1250.2,4.29689299]
[1672960897517,3.2078,1250.4,1250.2,4.29689299]
[1672960898049,3.2078,1250.4,1250.3,2.5]
[1672960898782,3.2078,1250.4,1250.3,4.29689299]
[1672960899531,2.5,1250.5,1250.3,4.29689299]
[1672960899727,5.7078,1250.5,1250.3,4.29689299]
[1672960900363,5.7078,1250.5,1250.3,2.5]
[1672960902042,2.5,1250.5,1250.3,2.5]
[1672960902353,3.2078,1250.4,1250.3,2.5]
[1672960902563,2.5,1250.5,1250.3,2.5]
[1672960902779,3.2078,1250.4,1250.3,2.5]
[1672960903297,3.2078,1250.4,1250.3,4.29689299]
[1672960904355,3.2078,1250.4,1250.3,1.79689299]
[1672960905302,2.5,1250.5,1250.3,1.79689299]
[1672960905500,3.2078,1250.4,1250.3,1.79689299]
[1672960906876,3.2078,1250.4,1250.2,6.69260092]
[1672960907087,3.2078,1250.4,1250.3,1.79689299]
[1672960907295,4.88745009,1250.5,1250.3,1.79689299]
[1672960907608,3.2078,1250.4,1250.3,1.79689299]
[1672960908662,2.5,1250.5,1250.3,1.79689299]
[1672960908865,3.2078,1250.4,1250.3,1.79689299]
[1672960910773,4.88745009,1250.5,1250.3,1.79689299]
[1672960910968,3.2078,1250.4,1250.3,1.79689299]
[1672960912655,11.0795627,1250.6,1250.3,2.39570793]
[1672960912862,2.38745009,1250.5,1250.3,4.19021973]
[1672960913177,8.09525009,1250.6,1250.4,4.2945118]
[1672960913492,8.09525009,1250.6,1250.5,2.5]
[1672960913707,11.0795627,1250.6,1250.5,2.5]
[1672960913913,8.09525009,1250.6,1250.5,2.5]
[1672960914862,8.09525009,1250.6,1250.5,4.2945118]
[1672960918325,11.0795627,1250.6,1250.5,4.2945118]
[1672960918535,8.09525009,1250.6,1250.5,4.2945118]
[1672960918749,11.0795627,1250.6,1250.5,4.2945118]
[1672960919066,8.5795627,1250.6,1250.5,4.2945118]
[1672960919275,6.19211261,1250.6,1250.5,4.2945118]
[1672960919485,6.19211261,1250.6,1250.5,6.69021973]
[1672960919691,6.19211261,1250.6,1250.5,4.2945118]
[1672960921589,6.19211261,1250.6,1250.5,6.69021973]
[1672960921792,6.19211261,1250.6,1250.5,4.2945118]
[1672960922846,8.58638429,1250.6,1250.5,6.69021973]
[1672960923059,6.19211261,1250.6,1250.5,4.2945118]
[1672960924429,2.98431261,1250.6,1250.5,4.2945118]
[1672960924741,6.19211261,1250.6,1250.5,4.2945118]
[1672960924954,6.19211261,1250.6,1250.5,1.7945118]
[1672960928527,2.98431261,1250.6,1250.5,1.7945118]
[1672960928735,6.19211261,1250.6,1250.5,1.7945118]
[1672960935568,6.19211261,1250.6,1250.5,2.99276319]
[1672960937255,2.98431261,1250.6,1250.5,2.99276319]
[1672960937564,6.19211261,1250.6,1250.5,2.99276319]
[1672960937987,6.19211261,1250.6,1250.5,2.99282396]
[1672960938306,6.19211261,1250.6,1250.5,2.99282353]
[1672960939775,8.58614582,1250.6,1250.5,6.69021973]
[1672960939991,5.60183321,1250.6,1250.5,6.69021973]
[1672960940299,8.58614582,1250.6,1250.5,6.69021973]
[1672960941553,6.19211261,1250.6,1250.5,6.69021973]
[1672960941974,8.58627828,1250.6,1250.5,6.69021973]
[1672960942185,8.58622771,1250.6,1250.5,6.69021973]
[1672960942711,5.6019151,1250.6,1250.5,4.89570793]
[1672960942921,5.6019151,1250.6,1250.5,6.31303971]
[1672960943132,6.19211261,1250.6,1250.5,6.69324566]
[1672960943768,8.58638547,1250.6,1250.5,6.69334762]
[1672960943977,5.37858547,1250.6,1250.5,4.89570793]
[1672960944193,2.39427286,1250.6,1250.5,6.31396009]
[1672960944921,2.39427286,1250.6,1250.5,9.30188494]
[1672960945134,4.19006889,1250.6,1250.5,9.30188494]
[1672960945344,4.29579603,1250.6,1250.5,6.9051874]
[1672960945551,1.79579603,1250.6,1250.5,9.30137679]
[1672960946602,1.79579603,1250.6,1250.5,9.30137378]
[1672960947014,1.79579603,1250.6,1250.5,6.9051874]
[1672960948396,4.19006889,1250.7,1250.5,14.8911874]
[1672960948712,1.79579603,1250.7,1250.6,7.61956913]
[1672960949339,6.57968055,1250.8,1250.6,10.11956913]
[1672960949661,6.57968055,1250.8,1250.7,6.69030573]
[1672960951863,4.78388452,1250.8,1250.7,4.29584531]
[1672960952910,6.57804461,1250.8,1250.7,4.29584531]
[1672960953971,4.18377175,1250.8,1250.7,4.29584531]
[1672960954914,4.18377175,1250.8,1250.7,6.69030573]
[1672960955335,4.18377175,1250.8,1250.7,4.29584531]
[1672960955545,4.18377175,1250.8,1250.7,6.69030573]
[1672960955755,4.18377175,1250.8,1250.7,4.29584531]
[1672960956704,4.18377175,1250.8,1250.7,6.69030573]
[1672960957432,2.38961166,1250.8,1250.7,4.29584531]
[1672960957750,2.38961166,1250.8,1250.7,6.31140655]
[1672960957961,2.38961166,1250.8,1250.7,6.91145271]
[1672960958378,2.38961166,1250.8,1250.7,9.30298916]
[1672960958801,2.38961166,1250.8,1250.7,6.30848258]
[1672960960913,2.38384763,1250.8,1250.7,6.30848258]
[1672960961124,2.38384763,1250.8,1250.7,4.89153645]
[1672960961647,2.98431261,1251.1,1250.8,2.5]
[1672960961648,2.39427286,1251.1,1250.8,2.5]
[1672960961856,4.89427286,1251.1,1250.9,1.19502847]
[1672960962061,4.89427286,1251.0,1250.8,5.48757117]
[1672960962273,2.5,1250.9,1250.8,5.48757117]
[1672960963214,4.89427286,1251.0,1250.8,5.48757117]
[1672960963425,2.5,1251.0,1250.8,5.48757117]
[1672960963637,2.5,1251.0,1250.9,1.19502847]
[1672960963848,4.89427286,1251.1,1250.9,1.19502847]
[1672960964058,2.5,1251.1,1250.9,2.98757117]
[1672960964269,5.60207286,1251.2,1251.0,3.69502847]
[1672960964481,8.10207286,1251.2,1251.0,3.69502847]
[1672960965429,8.10207286,1251.2,1251.0,2.5]
[1672960965637,8.10207286,1251.2,1251.0,3.69502847]
[1672960965847,8.10207286,1251.2,1251.0,2.5]
[1672960965848,4.89427286,1251.2,1251.0,2.5]
[1672960968058,2.5,1251.1,1251.0,2.5]
[1672960968894,2.5,1251.1,1251.0,2.49347779]
[1672960970475,2.5,1251.1,1250.9,1.19502847]
[1672960974369,4.89427286,1251.1,1250.9,1.19502847]
[1672960974678,2.5,1251.1,1250.9,1.19502847]
[1672960975629,4.89427286,1251.1,1250.9,1.19502847]
[1672960975942,2.39427286,1251.1,1250.9,1.19502847]
[1672960976782,11.08638547,1251.2,1250.9,1.19502847]
[1672960977512,2.39427286,1251.1,1250.9,1.19502847]
[1672960977724,2.5,1251.0,1250.9,1.19502847]
[1672960978563,4.89427286,1251.1,1250.9,1.19502847]
[1672960978990,2.5,1251.1,1250.9,1.19502847]
[1672960979303,4.89427286,1251.2,1251.0,1.19502847]
[1672960979510,2.39427286,1251.2,1251.1,2.5]
[1672960979718,2.39427286,1251.3,1251.1,3.69502847]
[1672960980459,7.87858547,1251.3,1251.1,2.5]
[1672960980774,2.5,1251.2,1251.1,2.5]
[1672960980971,4.89427286,1251.2,1251.1,2.5]
[1672960981184,4.89427286,1251.2,1251.0,1.19502847]
[1672960981606,4.89427286,1251.2,1251.0,3.69502847]
[1672960982765,7.87858547,1251.2,1251.0,3.69502847]
[1672960983191,2.39427286,1251.1,1251.0,3.69502847]
[1672960983403,2.39427286,1251.1,1251.0,1.19502847]
[1672960984451,2.39427286,1251.1,1251.0,3.69502847]
[1672960987398,2.39427286,1251.1,1251.0,5.48757117]
[1672960990866,2.39427286,1251.1,1251.0,2.98757117]
[1672960991069,5.37858547,1251.1,1251.0,1.19502847]
[1672960991277,5.37858547,1251.1,1251.0,2.98757117]
[1672960991488,2.98431261,1251.1,1251.0,2.98757117]
[1672960992332,2.98431261,1251.1,1251.0,1.19502847]
[1672960993379,2.98431261,1251.1,1251.0,2.98757117]
[1672960994221,2.39459467,1251.1,1251.0,4.18259964]
[1672960995488,5.37890728,1251.1,1251.0,4.18259964]
[1672960996114,2.39459467,1251.1,1251.0,2.39005694]
[1672960996745,2.39459467,1251.1,1251.0,5.59785694]
[1672960996951,5.37890728,1251.2,1251.1,2.5]
[1672960997169,2.39497341,1251.2,1251.1,4.29589572]
[1672960997485,5.37928602,1251.2,1251.1,6.68595266]
[1672960997695,5.37928602,1251.2,1251.1,4.29589572]
[1672960998012,5.37928602,1251.2,1251.1,6.68595266]
[1672960999269,2.39497341,1251.2,1251.1,4.29589572]
[1672960999475,5.37928602,1251.2,1251.1,4.29589572]
[1672961001481,2.98431261,1251.2,1251.1,5.49324284]
[1672961006311,2.98431261,1251.2,1251.1,4.29589572]
[1672961006943,2.98431261,1251.2,1251.1,5.49348435]
[1672961007155,2.98431261,1251.2,1251.1,5.4934955]
[1672961008624,2.98431261,1251.2,1251.1,5.49348522]
[1672961008834,2.98431261,1251.2,1251.1,4.29589572]
[1672961009048,2.98431261,1251.2,1251.1,5.49346828]
[1672961009366,2.39517015,1251.2,1251.1,8.09785694]
[1672961009995,2.39517015,1251.2,1251.1,9.89368571]
[1672961010827,2.39517015,1251.2,1251.1,6.68588571]
[1672961011042,5.37948276,1251.2,1251.1,6.68588571]
[1672961011574,5.37948276,1251.2,1251.1,4.29582877]
[1672961011988,3.6814,1251.1,1250.8,3.58489174]
[1672961012306,17.18411261,1250.9,1250.3,8.97461227]
[1672961012513,1.7956622,1250.5,1250.4,1.41732892]
[1672961012719,1.7956622,1250.5,1250.3,1.41732892]
[1672961012931,4.89421627,1250.5,1250.3,2.5]
[1672961013141,1.79547974,1250.4,1250.3,2.5]
[1672961013348,4.29547974,1250.5,1250.3,2.5]
[1672961013779,2.5,1250.4,1250.1,2.5]
[1672961014094,7.50327974,1250.4,1250.1,2.5]
[1672961015141,7.50327974,1250.4,1250.0,1.111]
[1672961015358,5.7078,1250.4,1250.0,1.111]
[1672961018834,3.2078,1250.2,1250.0,1.111]
[1672961019145,2.5,1250.1,1250.0,1.111]
[1672961019352,3.2078,1250.2,1250.0,1.111]
[1672961025138,2.5,1250.4,1250.0,1.111]
[1672961025343,3.2078,1250.2,1250.0,1.111]
[1672961025555,2.5,1250.1,1250.0,1.111]
[1672961026508,3.2078,1250.2,1250.0,1.111]
[1672961026719,2.5,1250.1,1250.0,1.111]
[1672961027248,3.2078,1250.2,1250.0,1.111]
[1672961027557,2.5,1250.1,1250.0,1.111]
[1672961028709,2.5,1250.4,1250.0,1.111]
[1672961028924,3.2078,1250.2,1250.0,1.111]
[1672961029134,2.5,1250.1,1250.0,1.111]
[1672961029972,3.2078,1250.2,1250.0,1.111]
[1672961030497,2.91982304,1250.2,1250.0,1.111]
[1672961030714,5.7078,1250.4,1250.1,2.5]
[1672961032921,3.2078,1250.4,1250.1,2.5]
[1672961034602,2.5,1250.5,1250.1,2.5]
[1672961034816,5.7078,1250.5,1250.1,2.5]
[1672961036384,2.5,1250.5,1250.1,2.5]
[1672961036596,3.2078,1250.4,1250.1,2.5]
[1672961036912,2.5,1250.3,1250.1,2.5]
[1672961038072,3.2078,1250.4,1250.1,2.5]
[1672961041429,3.2078,1250.4,1250.1,5.7078]
[1672961041638,2.5,1250.3,1250.1,5.7078]
[1672961043014,3.2078,1250.4,1250.1,5.7078]
[1672961044274,2.5,1250.3,1250.1,5.7078]
[1672961044794,2.5,1250.3,1250.1,2.5]
[1672961045214,2.5,1250.3,1250.1,4.87986404]
[1672961045941,2.5,1250.3,1250.1,2.5]
[1672961046269,3.2078,1250.4,1250.1,2.5]
[1672961046482,3.2078,1250.4,1250.1,4.87986404]
[1672961049002,2.5,1250.3,1250.1,4.87986404]
[1672961049213,2.5,1250.3,1250.2,2.37986404]
[1672961051420,2.5,1250.3,1250.2,2.97085347]
[1672961051628,2.5,1250.3,1250.2,4.3883848]
[1672961051941,2.5,1250.3,1250.2,1.41753133]
[1672961052891,2.5,1250.3,1250.2,4.41266363]
[1672961053517,5.00327974,1250.4,1250.2,4.41266363]
[1672961053725,5.00327974,1250.4,1250.3,2.3961542]
[1672961053935,5.00327974,1250.4,1250.3,4.8961542]
[1672961054144,5.00327974,1250.4,1250.3,6.31368553]
[1672961054566,5.00327974,1250.4,1250.3,9.30881783]
[1672961055304,1.79547974,1250.4,1250.3,9.30881783]
[1672961055517,5.00327974,1250.4,1250.3,9.30881783]
[1672961056466,1.79547974,1250.4,1250.3,9.30881783]
[1672961056786,5.00327974,1250.4,1250.3,9.30881783]
[1672961057094,1.79547974,1250.4,1250.3,9.30881783]
[1672961057305,5.00327974,1250.4,1250.3,3.81368553]
[1672961057517,5.60201627,1250.4,1250.3,2.3961542]
[1672961057720,5.60201627,1250.4,1250.2,6.80881783]
[1672961057931,1.79544582,1250.3,1250.2,2.3961542]
[1672961058142,4.29544582,1250.3,1250.2,3.81381015]
[1672961059094,7.50324582,1250.3,1250.2,4.41278825]
[1672961060347,4.29544582,1250.3,1250.2,4.41278825]
[1672961060554,7.50324582,1250.3,1250.2,4.41278825]
[1672961062451,4.29544582,1250.3,1250.2,4.41278825]
[1672961062661,7.50324582,1250.3,1250.2,4.41278825]
[1672961063296,9.89746209,1250.3,1250.2,6.80960921]
[1672961067821,8.10201627,1250.3,1250.2,6.80960921]
[1672961068765,8.10201627,1250.3,1250.2,3.81447691]
[1672961068974,8.10201627,1250.3,1250.2,6.80960921]
[1672961069293,9.89825285,1250.3,1250.2,4.41278825]
[1672961069715,9.89825285,1250.3,1250.2,6.81016771]
[1672961070022,9.89841349,1250.3,1250.2,6.81016771]
[1672961070972,6.69061349,1250.3,1250.2,6.81016771]
[1672961071174,9.89841349,1250.3,1250.2,6.81007911]
[1672961072019,9.89841349,1250.3,1250.2,4.41278825]
[1672961072863,8.10201627,1250.3,1250.2,6.8101099]
[1672961073495,9.89853626,1250.3,1250.2,4.41278825]
[1672961074652,7.39853626,1250.3,1250.2,4.41278825]
[1672961075176,5.60201627,1250.3,1250.2,6.81028655]
[1672961075381,5.60201627,1250.3,1250.2,6.81028613]
[1672961075600,5.60201627,1250.3,1250.2,4.41278825]
[1672961076858,7.3985944,1250.3,1250.2,4.41278825]
[1672961077280,5.60201627,1250.3,1250.2,4.41278825]
[1672961077694,2.39421627,1250.3,1250.2,4.41278825]
[1672961077909,1.76476721,1250.3,1250.2,4.41278825]
[1672961078428,4.26476721,1250.3,1250.2,4.41278825]
[1672961079380,4.26476721,1250.3,1250.2,2.9951323]
[1672961079585,4.26476721,1250.3,1250.2,4.41278825]
[1672961080111,1.76476721,1250.3,1250.2,4.41278825]
[1672961084423,1.76476721,1250.3,1250.2,1.41765595]
[1672961084838,1.76476721,1250.3,1250.2,4.41533236]
[1672961085999,1.76476721,1250.3,1250.2,1.41765595]
[1672961086526,1.76476721,1250.3,1250.2,4.41510043]
[1672961086737,1.76476721,1250.3,1250.2,1.41765595]
[1672961088312,5.48431261,1250.5,1250.3,0.31497843]
[1672961088313,2.5,1250.5,1250.3,0.31497843]
[1672961088523,2.5,1250.5,1250.4,2.39785492]
[1672961088524,5.48431261,1250.5,1250.4,2.39785492]
[1672961088728,5.48431261,1250.5,1250.4,4.89785492]
[1672961089047,5.48431261,1250.5,1250.4,6.31551087]
[1672961089885,5.48431261,1250.5,1250.4,4.89785492]
[1672961090096,5.48431261,1250.5,1250.4,4.1961674]
[1672961090411,5.48431261,1250.5,1250.4,1.79831248]
[1672961092093,8.69211261,1250.5,1250.4,1.79831248]
[1672961092308,5.48431261,1250.5,1250.4,1.79831248]
[1672961092521,8.69211261,1250.5,1250.4,1.79831248]
[1672961096726,5.7078,1250.5,1250.4,1.79831248]
[1672961097358,2.5,1250.5,1250.4,1.79831248]
[1672961097673,5.7078,1250.5,1250.4,1.79831248]
[1672961097986,5.7078,1250.5,1250.3,4.51114583]
[1672961098200,2.99454319,1250.4,1250.3,4.51114583]
[1672961098399,2.99454319,1250.4,1250.3,2.11329091]
[1672961100717,2.99454319,1250.4,1250.3,4.51114583]
[1672961101662,2.99454319,1250.4,1250.3,2.11329091]
[1672961103343,2.99454319,1250.4,1250.3,4.51114583]
[1672961103554,2.99454319,1250.4,1250.3,2.71283335]
[1672961103765,2.99454319,1250.4,1250.3,4.51126783]
[1672961103975,2.99454319,1250.4,1250.3,2.11341291]